bitfinex/quotes_BTCUSD_20250108
["timestamp","ask_amount","ask_price","bid_price","bid_amount"]
[1736358178460,2.01728069,93840.0,93839.0,0.71750764]
[1736358178660,0.85089455,93840.0,93839.0,0.71650764]
[1736358178891,0.45183721,93840.0,93839.0,0.71650764]
[1736358179019,0.45183721,93840.0,93839.0,0.70950764]
[1736358179239,0.45083721,93840.0,93839.0,0.71750764]
[1736358179406,0.45183721,93840.0,93839.0,0.71750764]
[1736358179608,0.45183721,93840.0,93839.0,0.48629976]
[1736358180005,0.45183721,93840.0,93839.0,0.32643076]
[1736358180371,0.45183721,93840.0,93839.0,0.009]
[1736358180814,0.45083721,93840.0,93839.0,0.009]
[1736358181425,0.45083721,93840.0,93839.0,0.018]
[1736358181624,0.45083721,93840.0,93839.0,0.009]
[1736358181825,0.45083721,93840.0,93839.0,0.006]
[1736358182143,0.45083721,93840.0,93839.0,0.015]
[1736358182504,0.45083721,93840.0,93839.0,0.009]
[1736358182719,0.45083721,93840.0,93839.0,0.13629976]
[1736358183223,0.45083721,93840.0,93839.0,0.48629976]
[1736358183383,0.44493721,93840.0,93839.0,0.48629976]
[1736358183787,0.34110914,93840.0,93839.0,0.48629976]
[1736358183989,0.0774,93880.0,93877.0,0.213043]
[1736358184391,0.0483,93887.0,93878.0,0.10429976]
[1736358184724,0.0483,93887.0,93878.0,0.21304]
[1736358185165,0.0483,93887.0,93870.0,0.02104453]
[1736358185324,0.15,93875.0,93832.0,0.1]
[1736358185565,0.15,93875.0,93857.0,0.21309]
[1736358185566,0.213054,93873.0,93857.0,0.21309]
[1736358185756,0.0786,93872.0,93858.0,0.213087]
[1736358185959,0.0786,93872.0,93860.0,0.213083]
[1736358186291,0.00133154,93871.0,93853.0,0.0208631]
[1736358186475,0.0786,93872.0,93859.0,0.213084]
[1736358186906,0.21306,93870.0,93853.0,0.0208631]
[1736358187106,0.0786,93872.0,93836.0,0.01181979]
[1736358187307,0.0786,93872.0,93817.0,0.1129]
[1736358187308,0.15,93865.0,93810.0,0.1]
[1736358187438,0.15,93865.0,93800.0,0.45907475]
[1736358187439,0.15,93863.0,93832.0,0.004]
[1736358187647,0.15,93861.0,93832.0,0.004]
[1736358187870,0.10563174,93862.0,93832.0,0.004]
[1736358187871,0.15,93859.0,93832.0,0.004]
[1736358188077,0.13119494,93858.0,93824.0,0.0217468]
[1736358188279,0.213122,93843.0,93825.0,0.213162]
[1736358188479,0.15,93856.0,93824.0,0.0217468]
[1736358188679,0.1,93861.0,93777.0,0.09532336]
[1736358188680,0.15,93854.0,93798.0,0.1]
[1736358188864,0.213119,93845.0,93803.0,0.313212]
[1736358189076,0.10429976,93845.0,93827.0,0.213156]
[1736358189373,0.0789,93842.0,93827.0,0.000153]
[1736358189573,0.213131,93839.0,93813.0,0.213189]
[1736358189773,0.10429976,93839.0,93815.0,0.02177867]
[1736358190057,0.0493,93840.0,93817.0,0.023]
[1736358190177,0.0493,93840.0,93819.0,0.023]
[1736358190372,0.241324,93842.0,93828.0,0.213155]
[1736358190865,0.241324,93842.0,93824.0,0.213163]
[1736358190866,0.0282,93842.0,93824.0,0.213163]
[1736358191103,0.213144,93834.0,93816.0,0.213183]
[1736358191306,0.21315,93831.0,93817.0,0.21318]
[1736358191429,0.213144,93834.0,93824.0,0.009]
[1736358191633,0.213128,93840.0,93828.0,0.003]
[1736358191835,0.0282,93842.0,93834.0,0.213141]
[1736358192055,0.001,93842.0,93831.0,0.15]
[1736358192246,0.001,93842.0,93841.0,0.236126]
[1736358192549,0.09412,93879.0,93867.0,0.213066]
[1736358192773,0.09412,93879.0,93847.0,0.213112]
[1736358192976,0.09412,93879.0,93866.0,0.213067]
[1736358193183,0.09321275,93880.0,93873.0,0.213052]
[1736358193385,0.21303,93884.0,93873.0,0.213053]
[1736358193579,0.0777,93885.0,93873.0,0.213053]
[1736358193794,0.0777,93885.0,93871.0,0.213057]
[1736358193795,0.00050953,93880.0,93879.0,0.21304]
[1736358194203,0.00041627,93880.0,93879.0,0.21304]
[1736358194827,0.00041627,93880.0,93875.0,0.023]
[1736358195053,0.00041627,93880.0,93879.0,0.21304]
[1736358195241,0.00041627,93880.0,93879.0,0.49033976]
[1736358195447,0.00041627,93880.0,93879.0,0.35333976]
[1736358195597,0.00041627,93880.0,93879.0,0.34433976]
[1736358195795,0.00041627,93880.0,93879.0,0.34033976]
[1736358196203,0.00041627,93880.0,93872.0,0.213056]
[1736358196400,0.00041627,93880.0,93861.0,0.02179733]
[1736358196605,0.00041627,93880.0,93875.0,0.009]
[1736358197923,0.00041627,93880.0,93865.0,0.023]
[1736358198154,0.00041627,93880.0,93875.0,0.002]
[1736358198324,0.00041627,93880.0,93879.0,0.22204]
[1736358198526,0.00041627,93880.0,93879.0,0.21304]
[1736358199255,0.00041627,93880.0,93875.0,0.001]
[1736358199639,0.00041627,93880.0,93879.0,0.009]
[1736358200879,0.00041627,93880.0,93879.0,0.011]
[1736358201082,0.00041627,93880.0,93879.0,0.002]
[1736358201276,0.15414749,93880.0,93879.0,0.002]
[1736358201527,0.15414749,93880.0,93831.0,0.1]
[1736358201724,0.213042,93878.0,93854.0,0.213096]
[1736358201878,0.213042,93878.0,93853.0,0.02100543]
[1736358202088,0.04851627,93880.0,93866.0,0.213068]
[1736358202301,0.04851627,93880.0,93871.0,0.213057]
[1736358202508,0.00041627,93880.0,93879.0,0.009]
[1736358202920,0.00041627,93880.0,93868.0,0.023]
[1736358203117,0.213051,93875.0,93860.0,0.213081]
[1736358203324,0.10429976,93874.0,93860.0,0.213081]
[1736358203524,0.213054,93873.0,93860.0,0.213081]
[1736358203731,0.213065,93869.0,93855.0,0.213094]
[1736358203947,0.10429976,93873.0,93853.0,0.02100543]
[1736358204151,0.213048,93876.0,93860.0,0.213081]
[1736358204152,0.10429976,93872.0,93860.0,0.213081]
[1736358204359,0.213009,93893.0,93872.0,0.213054]
[1736358204571,0.00220258,93888.0,93860.0,0.003]
[1736358204774,0.30733976,93879.0,93860.0,0.003]
[1736358204969,0.30733976,93879.0,93853.0,0.02100543]
[1736358204970,0.0791,93877.0,93855.0,0.009]
[1736358205277,0.31734576,93876.0,93858.0,0.213087]
[1736358205453,0.213058,93871.0,93860.0,0.004]
[1736358205899,0.213073,93865.0,93860.0,0.004]
[1736358206227,0.0453,93864.0,93860.0,0.004]
[1736358206428,0.15,93862.0,93860.0,0.004]
[1736358206651,0.15,93860.0,93821.0,0.213171]
[1736358206907,0.213131,93839.0,93808.0,0.09511816]
[1736358207162,0.10429976,93839.0,93809.0,0.10429976]
[1736358207294,0.213133,93838.0,93824.0,0.213163]
[1736358207496,0.10563192,93837.0,93808.0,0.31964116]
[1736358207699,0.10429976,93837.0,93813.0,0.02149573]
[1736358207917,0.213138,93836.0,93822.0,0.213168]
[1736358208167,0.2,93867.0,93822.0,0.00015331]
[1736358208384,0.075,93825.0,93822.0,0.00015331]
[1736358208574,0.075,93825.0,93824.0,0.009]
[1736358208775,0.075,93825.0,93824.0,0.002]
[1736358209122,0.06900061,93825.0,93824.0,0.002]
[1736358209741,0.06900061,93825.0,93813.0,0.02149573]
[1736358209943,0.06900061,93825.0,93813.0,0.0216486]
[1736358210141,0.09388,93843.0,93814.0,0.023]
[1736358210405,0.213126,93841.0,93814.0,0.023]
[1736358210587,0.10563191,93840.0,93813.0,0.0216486]
[1736358210765,0.213131,93839.0,93815.0,0.213185]
[1736358210962,0.10563199,93838.0,93821.0,0.21317]
[1736358211175,0.213133,93838.0,93816.0,0.213183]
[1736358211403,0.213133,93838.0,93824.0,0.009]
[1736358211404,0.001,93825.0,93824.0,0.009]
[1736358211739,0.10429976,93839.0,93830.0,0.21315]
[1736358211939,0.10429976,93839.0,93826.0,0.213159]
[1736358212130,0.10529976,93839.0,93826.0,0.213159]
[1736358212358,0.10429976,93839.0,93830.0,0.21315]
[1736358212918,0.10429976,93839.0,93826.0,0.213159]
[1736358213385,0.15,93834.0,93824.0,0.009]
[1736358213585,0.21314,93835.0,93824.0,0.009]
[1736358213586,0.363162,93825.0,93824.0,0.009]
[1736358213864,0.46746176,93825.0,93821.0,0.002]
[1736358214070,0.10563222,93824.0,93821.0,0.002]
[1736358214225,0.31879722,93824.0,93821.0,0.002]
[1736358214575,0.426366,93816.0,93813.0,0.00015287]
[1736358214774,0.15,93812.0,93783.0,0.01138915]
[1736358214907,0.15,93812.0,93752.0,0.1]
[1736358214908,0.10563253,93811.0,93784.0,0.00015278]
[1736358215117,0.1,93804.0,93784.0,0.00015278]
[1736358215321,0.213248,93788.0,93784.0,0.00015278]
[1736358215536,0.15,93798.0,93784.0,0.00015278]
[1736358215746,0.10563264,93797.0,93784.0,0.00015278]
[1736358215973,0.15,93794.0,93784.0,0.00015278]
[1736358216236,0.21324,93791.0,93784.0,0.00015278]
[1736358216387,0.15,93792.0,93784.0,0.00015278]
[1736358217112,0.213202,93808.0,93786.0,0.023]
[1736358217328,0.09388,93799.0,93788.0,0.023]
[1736358217547,0.307102,93799.0,93788.0,0.023]
[1736358217694,0.001,93792.0,93788.0,0.213245]
[1736358217909,0.001,93792.0,93789.0,0.023]
[1736358218308,0.001,93792.0,93786.0,0.009]
[1736358218559,0.001,93792.0,93790.0,0.213241]
[1736358218729,0.001,93803.0,93788.0,0.023]
[1736358218932,0.001,93803.0,93802.0,0.236215]
[1736358219167,0.001,93803.0,93802.0,0.023]
[1736358219573,0.10529976,93803.0,93802.0,0.023]
[1736358219908,0.213215,93802.0,93788.0,0.009]
[1736358220080,0.1056326,93801.0,93788.0,0.009]
[1736358220282,0.213234,93794.0,93788.0,0.009]
[1736358220489,0.0114708,93813.0,93790.0,0.003]
[1736358220699,0.001,93792.0,93790.0,0.003]
[1736358221074,0.001,93792.0,93790.0,0.21324]
[1736358221283,0.001,93792.0,93791.0,0.023]
[1736358221481,0.001,93801.0,93791.0,0.023]
[1736358221643,0.213183,93816.0,93806.0,0.023]
[1736358221844,0.213187,93814.0,93806.0,0.023]
[1736358222089,0.23309976,93815.0,93806.0,0.023]
[1736358222348,0.1288,93815.0,93806.0,0.023]
[1736358222492,0.0829,93815.0,93791.0,0.22428944]
[1736358222695,0.213148,93832.0,93812.0,0.023]
[1736358222914,0.18513209,93831.0,93806.0,0.00015295]
[1736358223099,0.18513209,93831.0,93818.0,0.213176]
[1736358223310,0.0795,93831.0,93806.0,0.00015295]
[1736358223466,0.213118,93845.0,93833.0,0.213142]
[1736358223670,0.0815,93853.0,93845.0,0.023]
[1736358223889,0.0815,93853.0,93850.0,0.213105]
[1736358224114,0.0802,93870.0,93837.0,0.02110915]
[1736358224320,0.213094,93855.0,93838.0,0.213133]
[1736358224522,0.213121,93844.0,93830.0,0.213149]
[1736358224729,0.10429976,93854.0,93833.0,0.003]
[1736358224901,0.213136,93837.0,93833.0,0.003]
[1736358225121,0.28934,93835.0,93833.0,0.003]
[1736358225531,0.213144,93833.0,93818.0,0.213177]
[1736358225730,0.213144,93833.0,93823.0,0.023]
[1736358225937,0.0762,93835.0,93825.0,0.023]
[1736358226138,0.0762,93835.0,93827.0,0.023]
[1736358228560,0.53060176,93830.0,93827.0,0.00015295]
[1736358228872,0.213135,93837.0,93827.0,0.00015295]
[1736358229072,0.21314,93835.0,93827.0,0.00015295]
[1736358229271,0.10429976,93836.0,93827.0,0.00015295]
[1736358229477,0.21313,93840.0,93827.0,0.00015295]
[1736358229752,0.31742976,93840.0,93829.0,0.1]
[1736358229940,0.01849637,93839.0,93829.0,0.1]
[1736358230149,0.213149,93831.0,93829.0,0.1]
[1736358230363,0.22833218,93830.0,93829.0,0.109]
[1736358230596,0.22699976,93830.0,93829.0,0.1]
[1736358230799,0.32091976,93830.0,93829.0,0.1]
[1736358231542,0.32091976,93830.0,93829.0,0.109]
[1736358231774,0.1227,93830.0,93829.0,0.1]
[1736358232139,0.18049976,93830.0,93829.0,0.109]
[1736358232568,0.39365076,93830.0,93829.0,0.109]
[1736358232775,0.18049976,93830.0,93829.0,0.109]
[1736358233189,0.0832,93858.0,93831.0,0.023]
[1736358233392,0.213114,93847.0,93832.0,0.213146]
[1736358233596,0.21313,93840.0,93829.0,0.1]
[1736358233803,0.10429976,93839.0,93829.0,0.109]
[1736358234007,0.00133219,93838.0,93829.0,0.1]
[1736358234213,0.213151,93830.0,93829.0,0.1]
[1736358234424,0.36326557,93830.0,93829.0,0.1]
[1736358234633,0.49126557,93830.0,93829.0,0.1]
[1736358234841,0.49126557,93830.0,93829.0,0.046]
[1736358235038,0.49126557,93830.0,93829.0,0.055]
[1736358235237,0.49126557,93830.0,93829.0,0.056]
[1736358235441,0.44545076,93830.0,93829.0,0.047]
[1736358235646,0.59545076,93830.0,93829.0,0.047]
[1736358235851,0.1,93826.0,93822.0,0.00015272]
[1736358236072,0.66746676,93823.0,93822.0,0.00015272]
[1736358236281,0.66746676,93823.0,93780.0,0.426527]
[1736358236282,0.213236,93793.0,93780.0,0.426527]
[1736358236486,0.1,93817.0,93780.0,0.02179987]
[1736358236690,0.213236,93793.0,93781.0,0.213262]
[1736358237099,0.10429976,93792.0,93780.0,0.02195267]
[1736358237317,0.00123286,93791.0,93780.0,0.0001528]
[1736358237513,0.213254,93785.0,93780.0,0.0091528]
[1736358237713,0.213258,93783.0,93780.0,0.0001528]
[1736358237914,0.213262,93781.0,93780.0,0.0001528]
[1736358238129,0.31756176,93781.0,93780.0,0.0001528]
[1736358238705,0.31756176,93781.0,93780.0,0.0101528]
[1736358239690,0.213252,93786.0,93780.0,0.0101528]
[1736358239892,0.33557444,93786.0,93780.0,0.0101528]
[1736358240100,0.213262,93781.0,93780.0,0.0001528]
[1736358240298,0.31756176,93781.0,93780.0,0.0091528]
[1736358240622,0.32848008,93781.0,93780.0,0.0111528]
[1736358240828,0.32848008,93781.0,93780.0,0.0021528]
[1736358240829,0.31756176,93781.0,93780.0,0.0021528]
[1736358241000,0.31756176,93781.0,93780.0,0.0111528]
[1736358241243,0.10429976,93781.0,93780.0,0.0111528]
[1736358241452,0.0819,93796.0,93780.0,0.0001528]
[1736358241659,0.12318646,93795.0,93780.0,0.0091528]
[1736358241881,0.213233,93794.0,93780.0,0.0091528]
[1736358242069,0.213237,93792.0,93780.0,0.0001528]
[1736358242283,0.0819,93796.0,93785.0,0.213252]
[1736358242493,0.10429976,93795.0,93780.0,0.0001528]
[1736358242702,0.15373912,93795.0,93780.0,0.0001528]
[1736358242904,0.213255,93785.0,93780.0,0.0001528]
[1736358243103,0.10563264,93784.0,93780.0,0.0001528]
[1736358243239,0.426516,93783.0,93780.0,0.0001528]
[1736358243436,0.262262,93781.0,93780.0,0.0091528]
[1736358243916,0.10429976,93783.0,93780.0,0.0001528]
[1736358244115,0.10429976,93783.0,93780.0,0.0091528]
[1736358244325,0.21326,93782.0,93780.0,0.0091528]
[1736358244551,0.1056327,93781.0,93780.0,0.0001528]
[1736358244752,0.10563284,93781.0,93780.0,0.0091528]
[1736358245127,0.10563284,93781.0,93780.0,0.0001528]
[1736358245336,0.15,93788.0,93780.0,0.0091528]
[1736358245544,0.21326,93783.0,93780.0,0.0101528]
[1736358245703,0.10563274,93782.0,93780.0,0.0101528]
[1736358246310,0.213262,93781.0,93780.0,0.0101528]
[1736358246510,0.46756176,93781.0,93780.0,0.0011528]
[1736358246912,0.46756176,93781.0,93780.0,0.0001528]
[1736358247547,0.46756176,93781.0,93780.0,0.0091528]
[1736358247548,0.48368873,93781.0,93780.0,0.0091528]
[1736358247755,0.71248873,93781.0,93780.0,0.0001528]
[1736358247955,0.61248873,93781.0,93780.0,0.0001528]
[1736358248158,0.61248873,93781.0,93780.0,0.0091528]
[1736358248159,0.59636176,93781.0,93780.0,0.0091528]
[1736358248332,0.69636176,93781.0,93780.0,0.0091528]
[1736358248705,0.69636176,93781.0,93713.0,0.1]
[1736358248706,0.213344,93746.0,93709.0,0.1498]
[1736358248908,0.15,93776.0,93705.0,0.213434]
[1736358248909,0.213347,93744.0,93732.0,0.00050867]
[1736358249208,0.10429976,93743.0,93732.0,0.00050867]
[1736358249817,0.15133352,93742.0,93732.0,0.00050867]
[1736358250016,0.213365,93737.0,93732.0,0.00050867]
[1736358250206,0.2556335,93736.0,93732.0,0.00050867]
[1736358250340,0.213367,93735.0,93732.0,0.00050867]
[1736358250543,0.213372,93733.0,93732.0,0.00950867]
[1736358250779,0.31767176,93733.0,93732.0,0.00050867]
[1736358251385,0.31767176,93733.0,93732.0,0.01150867]
[1736358251588,0.31767176,93733.0,93732.0,0.00250867]
[1736358251793,0.05340092,93825.0,93732.0,0.00250867]
[1736358251794,0.21332,93756.0,93732.0,0.00050867]
[1736358251995,0.213372,93733.0,93732.0,0.00950867]
[1736358252198,0.31767176,93733.0,93732.0,0.00950867]
[1736358252938,0.46767176,93733.0,93732.0,0.00950867]
[1736358253293,0.46767176,93733.0,93732.0,0.01150867]
[1736358253708,0.31767176,93733.0,93732.0,0.01150867]
[1736358253920,0.0823,93763.0,93740.0,0.023]
[1736358254125,0.31760576,93762.0,93744.0,0.213346]
[1736358254368,0.0472,93767.0,93755.0,0.213321]
[1736358254624,0.213278,93775.0,93758.0,0.023]
[1736358254855,0.213292,93768.0,93754.0,0.023]
[1736358255085,0.001,93733.0,93732.0,0.34896767]
[1736358255292,0.214305,93763.0,93733.0,0.173]
[1736358255498,0.213315,93758.0,93755.0,0.009]
[1736358256157,0.213319,93756.0,93755.0,0.009]
[1736358256360,0.10429976,93758.0,93755.0,0.009]
[1736358256562,0.10429976,93756.0,93755.0,0.009]
[1736358256894,0.10429976,93756.0,93732.0,0.02229391]
[1736358256895,0.15752537,93756.0,93741.0,0.023]
[1736358257104,0.213365,93736.0,93732.0,0.00050867]
[1736358257280,0.213369,93734.0,93732.0,0.00050867]
[1736358257504,0.10563338,93733.0,93732.0,0.00050867]
[1736358257741,0.25563338,93733.0,93732.0,0.00050867]
[1736358257941,0.25429976,93733.0,93732.0,0.00050867]
[1736358258254,0.35311104,93733.0,93732.0,0.00050867]
[1736358258479,0.25429976,93733.0,93732.0,0.00050867]
[1736358259592,0.21331984,93696.0,93681.0,0.213488]
[1736358259798,0.2318,93724.0,93667.0,0.07698611]
[1736358260158,0.213436,93705.0,93691.0,0.213467]
[1736358260331,0.1056339,93704.0,93691.0,0.213467]
[1736358260839,0.213428,93709.0,93695.0,0.213456]
[1736358260979,0.12458933,93708.0,93683.0,0.213485]
[1736358261188,0.10563381,93708.0,93682.0,0.02162869]
[1736358261396,0.213433,93706.0,93690.0,0.023]
[1736358261587,0.10429976,93705.0,93692.0,0.023]
[1736358261791,0.0818,93724.0,93683.0,0.023]
[1736358261990,0.0795,93740.0,93716.0,0.023]
[1736358262239,0.0795,93740.0,93710.0,0.23632447]
[1736358262240,0.09372,93740.0,93710.0,0.23632447]
[1736358262450,0.09372,93740.0,93730.0,0.213376]
[1736358262622,0.09372,93740.0,93727.0,0.213385]
[1736358262833,0.09372,93740.0,93719.0,0.02181469]
[1736358262834,0.31765776,93739.0,93719.0,0.02181469]
[1736358263185,0.10429976,93739.0,93728.0,0.023]
[1736358263625,0.21336,93738.0,93727.0,0.023]
[1736358263832,0.10429976,93737.0,93726.0,0.023]
[1736358264235,0.10329976,93737.0,93719.0,0.021967]
[1736358264443,0.003,93724.0,93720.0,0.213401]
[1736358264650,0.003,93724.0,93721.0,0.023]
[1736358264864,0.213367,93735.0,93721.0,0.023]
[1736358265071,0.10429976,93734.0,93727.0,0.009]
[1736358265269,0.213372,93733.0,93726.0,0.001]
[1736358265474,0.10429976,93734.0,93726.0,0.001]
[1736358265673,0.10429976,93734.0,93723.0,0.023]
[1736358265877,0.213372,93733.0,93721.0,0.023]
[1736358266231,0.213372,93733.0,93719.0,0.00015231]
[1736358266232,0.31900843,93732.0,93719.0,0.00015231]
[1736358266432,0.10429976,93732.0,93719.0,0.00015231]
[1736358266629,0.213388,93726.0,93721.0,0.001]
[1736358266856,0.0755,93723.0,93721.0,0.001]
[1736358267191,0.15473382,93722.0,93721.0,0.001]
[1736358267395,0.4438322,93722.0,93721.0,0.0095]
[1736358267599,0.36679676,93722.0,93721.0,0.0095]
[1736358267809,0.36679676,93722.0,93721.0,0.0005]
[1736358268021,0.31769676,93722.0,93721.0,0.009]
[1736358268227,0.213377,93731.0,93721.0,0.009]
[1736358268427,0.10429976,93731.0,93719.0,0.00115231]
[1736358268631,0.213344,93746.0,93721.0,0.009]
[1736358268834,0.213344,93746.0,93731.0,0.213374]
[1736358269039,0.213344,93746.0,93734.0,0.023]
[1736358269240,0.213344,93746.0,93731.0,0.213374]
[1736358269447,0.213349,93744.0,93734.0,0.023]
[1736358269652,0.0755,93753.0,93721.0,0.009]
[1736358269653,0.213378,93731.0,93721.0,0.009]
[1736358269852,0.213393,93724.0,93719.0,0.00015231]
[1736358270287,0.213393,93724.0,93721.0,0.009]
[1736358270475,0.09344,93726.0,93719.0,0.00015231]
[1736358270760,0.213397,93722.0,93721.0,0.009]
[1736358270935,0.31769676,93722.0,93721.0,0.009]
[1736358271117,0.53109376,93722.0,93719.0,0.00015231]
[1736358271325,0.213401,93720.0,93719.0,0.00915231]
[1736358271536,0.09344,93726.0,93719.0,0.00915231]
[1736358271746,0.213392,93724.0,93719.0,0.00015231]
[1736358272524,0.426784,93724.0,93719.0,0.00115231]
[1736358272919,0.213392,93724.0,93719.0,0.00015231]
[1736358273133,0.10429976,93725.0,93719.0,0.00015231]
[1736358273347,0.09344,93732.0,93721.0,0.009]
[1736358273526,0.19773976,93732.0,93722.0,0.023]
[1736358273741,0.41111476,93732.0,93722.0,0.023]
[1736358273950,0.41111476,93732.0,93720.0,0.023]
[1736358274165,0.45003627,93732.0,93719.0,0.00015231]
[1736358274566,0.13236151,93732.0,93720.0,0.023]
[1736358274701,0.09344,93732.0,93722.0,0.023]
[1736358275118,0.09344,93732.0,93719.0,0.21355431]
[1736358275119,0.09344,93732.0,93719.0,0.00015231]
[1736358275742,0.09344,93732.0,93725.0,0.213389]
[1736358275955,0.09344,93732.0,93729.0,0.21338]
[1736358276155,0.213344,93746.0,93733.0,0.21337]
[1736358276381,0.213332,93751.0,93721.0,0.213399]
[1736358276586,0.18376966,93750.0,93723.0,0.213394]
[1736358276792,0.18376966,93750.0,93722.0,0.10429976]
[1736358276793,0.213337,93748.0,93730.0,0.426755]
[1736358277000,0.18376966,93750.0,93725.0,0.009]
[1736358277214,0.213361,93738.0,93725.0,0.009]
[1736358277433,0.0001998,93732.0,93721.0,0.213398]
[1736358277636,0.0001998,93732.0,93721.0,0.009]
[1736358277844,0.0001998,93732.0,93725.0,0.001]
[1736358278068,0.213378,93730.0,93725.0,0.001]
[1736358278244,0.0001998,93732.0,93725.0,0.009]
[1736358278245,0.213376,93731.0,93725.0,0.009]
[1736358278645,0.0001998,93732.0,93725.0,0.009]
[1736358278852,0.02135728,93731.0,93725.0,0.009]
[1736358279034,0.213386,93727.0,93725.0,0.009]
[1736358279234,0.10563346,93726.0,93725.0,0.009]
[1736358279449,0.10429976,93726.0,93725.0,0.009]
[1736358279660,0.10429976,93726.0,93715.0,0.023]
[1736358279865,0.0001998,93732.0,93717.0,0.023]
[1736358280077,0.0001998,93732.0,93722.0,0.023]
[1736358280284,0.213376,93731.0,93720.0,0.023]
[1736358280481,0.0001998,93732.0,93725.0,0.21339]
[1736358280698,0.0001998,93732.0,93725.0,0.009]
[1736358280898,0.0001998,93732.0,93720.0,0.023]
[1736358281134,0.0001998,93732.0,93731.0,0.213376]
[1736358281339,0.0001998,93732.0,93731.0,0.236376]
[1736358281543,0.213331,93751.0,93731.0,0.03322834]
[1736358281747,0.426662,93751.0,93737.0,0.21336]
[1736358281948,0.213331,93751.0,93739.0,0.236358]
[1736358282156,0.213331,93751.0,93739.0,0.449716]
[1736358282393,0.213311,93760.0,93747.0,0.213338]
[1736358282595,0.213325,93754.0,93744.0,0.023]
[1736358282811,0.31762476,93754.0,93744.0,0.023]
[1736358283187,0.213315,93758.0,93746.0,0.023]
[1736358283385,0.1,93792.0,93746.0,0.023]
[1736358283610,0.213259,93783.0,93749.0,0.023]
[1736358283819,0.10429976,93783.0,93768.0,0.023]
[1736358284020,0.136178,93787.0,93777.0,0.023]
[1736358284021,0.09344,93787.0,93777.0,0.023]
[1736358284219,0.13970741,93797.0,93783.0,0.023]
[1736358284418,0.13970741,93797.0,93771.0,0.023]
[1736358284419,0.30613341,93797.0,93771.0,0.023]
[1736358284645,0.09290741,93797.0,93791.0,0.023]
[1736358285057,0.291104,93807.0,93793.0,0.023]
[1736358285180,0.213208,93805.0,93761.0,0.163693]
[1736358285393,0.00133274,93804.0,93771.0,0.15]
[1736358285593,0.0005099,93797.0,93795.0,0.023]
[1736358285789,0.0005099,93797.0,93796.0,0.213228]
[1736358285989,0.0005099,93797.0,93796.0,0.236228]
[1736358286836,0.0005099,93797.0,93796.0,0.34052776]
[1736358287034,0.0005099,93797.0,93796.0,0.49052776]
[1736358287951,0.09290741,93844.0,93832.0,0.213145]
[1736358288180,0.260917,93846.0,93833.0,0.023]
[1736358288181,0.213117,93845.0,93833.0,0.023]
[1736358288317,0.213117,93845.0,93833.0,0.236142]
[1736358288814,0.213117,93845.0,93806.0,0.213205]
[1736358288815,0.10429976,93842.0,93806.0,0.213205]
[1736358289019,0.213158,93827.0,93796.0,0.02223112]
[1736358289243,0.213179,93818.0,93807.0,0.023]
[1736358289459,0.213193,93812.0,93806.0,0.00015268]
[1736358289899,0.213203,93807.0,93806.0,0.00015268]
[1736358290329,0.31737445,93807.0,93806.0,0.00015268]
[1736358290526,0.21307469,93807.0,93806.0,0.00015268]
[1736358290917,0.21307469,93807.0,93806.0,0.00915268]
[1736358291126,0.0934,93815.0,93806.0,0.00905268]
[1736358291357,0.213199,93809.0,93806.0,5.268e-05]
[1736358291561,0.213203,93807.0,93806.0,5.268e-05]
[1736358292137,0.214203,93807.0,93806.0,5.268e-05]
[1736358292334,0.001,93807.0,93806.0,5.268e-05]
[1736358292743,0.0457,93827.0,93806.0,0.22225768]
[1736358292893,0.10563208,93826.0,93806.0,5.268e-05]
[1736358293100,0.001,93807.0,93806.0,5.268e-05]
[1736358293512,0.001,93807.0,93806.0,0.00905268]
[1736358293748,0.001,93807.0,93806.0,5.268e-05]
[1736358294155,0.001,93807.0,93806.0,0.00905268]
[1736358294350,0.001,93807.0,93806.0,5.268e-05]
[1736358294555,0.16935836,93807.0,93806.0,5.268e-05]
[1736358294836,0.10663237,93807.0,93806.0,5.268e-05]
[1736358295076,0.213199,93809.0,93806.0,5.268e-05]
[1736358295242,0.213188,93814.0,93806.0,5.268e-05]
[1736358295868,0.0457,93827.0,93807.0,0.023]
[1736358296175,0.0457,93827.0,93806.0,0.00905268]
[1736358296176,0.426396,93810.0,93806.0,5.268e-05]
[1736358296376,0.289001,93808.0,93806.0,5.268e-05]
[1736358296601,0.25535899,93807.0,93806.0,0.00905268]
[1736358296783,0.25429976,93807.0,93806.0,5.268e-05]
[1736358298183,0.1,93791.0,93751.0,0.21333]
[1736358298426,0.10429976,93781.0,93751.0,0.0005099]
[1736358298648,0.15133328,93780.0,93751.0,0.0005099]
[1736358298867,0.213297,93766.0,93752.0,0.213328]
[1736358299241,0.21329,93769.0,93756.0,0.213317]
[1736358299451,0.31758976,93769.0,93756.0,0.213317]
[1736358299849,0.213284,93772.0,93759.0,0.023]
[1736358300051,0.213274,93776.0,93760.0,0.21331]
[1736358300254,0.09312,93777.0,93767.0,0.213292]
[1736358300453,0.09312,93777.0,93751.0,0.0005099]
[1736358300454,0.10563275,93776.0,93751.0,0.0005099]
[1736358300656,0.213295,93767.0,93754.0,0.213324]
[1736358300861,0.10429976,93776.0,93756.0,0.009]
[1736358301063,0.09312,93777.0,93766.0,0.023]
[1736358301222,0.213233,93794.0,93761.0,0.023]
[1736358301494,0.213267,93779.0,93764.0,0.213301]
[1736358301703,0.00133289,93778.0,93760.0,0.009]
[1736358301919,0.10429976,93777.0,93760.0,0.009]
[1736358302117,0.426604,93764.0,93760.0,0.004]
[1736358302325,0.213302,93764.0,93760.0,0.004]
[1736358302746,0.09312,93770.0,93752.0,0.213328]
[1736358302962,0.213254,93785.0,93752.0,0.10429976]
[1736358303163,0.213254,93785.0,93771.0,0.213285]
[1736358303164,0.10429976,93784.0,93771.0,0.213285]